bitfinex/quotes_SOLUSD_20230104
["timestamp","ask_amount","ask_price","bid_price","bid_amount"]
[1672847142205,166.2477,13.319,13.307,224.7]
[1672847142416,166.2477,13.319,13.309,224.7]
[1672847143371,166.2477,13.319,13.306,224.7]
[1672847143562,166.2477,13.319,13.308,224.7]
[1672847143776,166.2477,13.319,13.305,281.12]
[1672847143981,166.2477,13.319,13.305,224.7]
[1672847144726,166.2477,13.319,13.304,224.7]
[1672847145680,166.2477,13.319,13.302,47.9299]
[1672847145895,76.36,13.318,13.295,170.0171]
[1672847146099,11.58239957,13.318,13.297,56.45]
[1672847146309,166.2477,13.319,13.301,21.7811836]
[1672847146525,166.2477,13.319,13.302,56.43]
[1672847146843,166.2477,13.319,13.303,224.7]
[1672847146844,163.7477,13.319,13.303,224.7]
[1672847147039,163.7477,13.319,13.305,224.7]
[1672847148739,163.7477,13.319,13.307,224.7]
[1672847149790,163.7477,13.319,13.305,224.7]
[1672847149985,163.7477,13.319,13.307,224.7]
[1672847150837,163.7477,13.319,13.309,224.7]
[1672847151788,163.7477,13.319,13.31,224.7]
[1672847152614,10.9263619,13.32,13.31,224.7]
[1672847152950,10.9263619,13.32,13.306,21.7811836]
[1672847152951,0.50000001,13.321,13.312,224.7]
[1672847153152,0.50000001,13.321,13.313,336.11]
[1672847153347,0.50000001,13.321,13.31,224.7]
[1672847153555,0.50000001,13.321,13.311,23.9271]
[1672847154501,0.50000001,13.321,13.313,224.7]
[1672847154945,0.50000001,13.321,13.311,23.9271]
[1672847155141,0.50000001,13.321,13.311,305.0171]
[1672847155466,0.50000001,13.321,13.311,248.6271]
[1672847156076,0.50000001,13.321,13.311,23.9271]
[1672847156286,0.50000001,13.321,13.311,305.0171]
[1672847156496,0.50000001,13.321,13.311,248.6271]
[1672847156744,0.50000001,13.321,13.313,224.7]
[1672847157673,0.50000001,13.321,13.311,23.9271]
[1672847157884,0.50000001,13.321,13.312,224.7]
[1672847158295,0.50000001,13.321,13.309,281.1]
[1672847158615,0.50000001,13.321,13.309,224.7]
[1672847158823,0.50000001,13.321,13.306,224.7]
[1672847159041,0.50000001,13.321,13.308,224.7]
[1672847159241,0.50000001,13.321,13.31,224.7]
[1672847159787,0.50000001,13.321,13.312,224.7]
[1672847159988,0.50000001,13.321,13.314,224.7]
[1672847161150,0.50000001,13.321,13.312,224.7]
[1672847162617,0.50000001,13.321,13.307,56.41]
[1672847162814,0.50000001,13.321,13.308,224.7]
[1672847163030,56.36,13.32,13.306,248.5666]
[1672847163237,43.6286,13.319,13.306,248.5666]
[1672847163879,157.9991,13.319,13.306,248.5666]
[1672847165335,0.50000001,13.321,13.308,224.7]
[1672847165663,0.50000001,13.321,13.31,224.7]
[1672847165887,0.50000001,13.321,13.312,224.7]
[1672847166189,0.50000001,13.321,13.314,224.7]
[1672847166819,0.50000001,13.321,13.31,224.7]
[1672847167242,0.50000001,13.321,13.311,224.7]
[1672847167448,10.9263619,13.32,13.307,56.41]
[1672847167657,10.9263619,13.32,13.306,23.8666]
[1672847167658,20.0,13.319,13.306,23.8666]
[1672847167869,161.1979,13.319,13.306,248.5666]
[1672847168093,161.1979,13.319,13.308,224.7]
[1672847168309,161.1979,13.319,13.31,224.7]
[1672847169469,161.1979,13.319,13.308,224.7]
[1672847169672,161.1979,13.319,13.31,224.7]
[1672847169993,141.1979,13.319,13.31,224.7]
[1672847170208,0.50000001,13.321,13.312,224.7]
[1672847171257,0.50000001,13.321,13.308,224.7]
[1672847171468,0.50000001,13.321,13.31,224.7]
[1672847171657,0.50000001,13.321,13.312,224.7]
[1672847171872,0.50000001,13.321,13.314,224.7]
[1672847172934,0.50000001,13.321,13.309,224.7]
[1672847173142,0.50000001,13.321,13.311,224.7]
[1672847173350,0.50000001,13.321,13.313,224.7]
[1672847173649,0.50000001,13.321,13.315,224.7]
[1672847174708,0.50000001,13.321,13.307,23.8891]
[1672847174709,0.50000001,13.321,13.316,281.07]
[1672847175437,22.9562,13.326,13.321,0.91279055]
[1672847177556,56.26,13.342,13.323,224.7]
[1672847177871,10.9263619,13.341,13.323,224.7]
[1672847178194,10.9263619,13.341,13.325,224.7]
[1672847178397,10.9263619,13.341,13.327,224.7]
[1672847179331,71.5113905,13.336,13.324,224.7]
[1672847180284,71.5113905,13.336,13.325,224.7]
[1672847181023,60.5850286,13.336,13.325,224.7]
[1672847181435,60.5850286,13.336,13.326,224.7]
[1672847181770,60.5850286,13.336,13.328,224.7]
[1672847182915,60.5850286,13.336,13.324,224.7]
[1672847183127,60.5850286,13.336,13.326,224.7]
[1672847183325,60.5850286,13.336,13.328,224.7]
[1672847184386,60.5850286,13.336,13.324,224.7]
[1672847184582,60.5850286,13.336,13.326,224.7]
[1672847185212,60.5850286,13.336,13.328,224.7]
[1672847186067,60.5850286,13.336,13.33,224.7]
[1672847186278,60.5850286,13.336,13.332,224.7]
[1672847187242,60.5850286,13.336,13.333,224.7]
[1672847188071,38.0950286,13.336,13.333,224.7]
[1672847188280,29.7196286,13.336,13.335,224.7]
[1672847189332,29.7196286,13.336,13.329,224.7]
[1672847189547,29.7196286,13.336,13.331,246.4811836]
[1672847189758,29.7196286,13.336,13.333,224.7]
[1672847189968,29.7196286,13.336,13.335,224.7]
[1672847190178,29.980308,13.342,13.335,280.99]
[1672847190499,46.0022,13.346,13.337,224.7]
[1672847190814,46.0022,13.346,13.339,224.7]
[1672847191660,46.0022,13.346,13.335,224.7]
[1672847191846,23.5962,13.353,13.338,21.7811836]
[1672847192060,23.5962,13.353,13.34,224.7]
[1672847192270,23.5962,13.353,13.342,224.7]
[1672847192484,29.946653,13.356,13.344,224.7]
[1672847192701,29.946653,13.356,13.344,280.95]
[1672847193106,29.946653,13.356,13.344,56.25]
[1672847193319,29.946653,13.356,13.34,224.7]
[1672847193526,29.946653,13.356,13.337,56.28]
[1672847193527,29.946653,13.356,13.341,224.7]
[1672847194173,29.946653,13.356,13.343,224.7]
[1672847195212,29.946653,13.356,13.339,224.7]
[1672847195423,29.946653,13.356,13.341,224.7]
[1672847195853,86.146653,13.356,13.338,56.28]
[1672847196172,86.146653,13.356,13.334,224.7]
[1672847196366,86.146653,13.356,13.336,224.7]
[1672847197233,164.3861,13.347,13.336,224.7]
[1672847197422,164.3861,13.347,13.333,224.7]
[1672847197632,56.25,13.346,13.333,224.7]
[1672847198597,220.6261,13.347,13.333,224.7]
[1672847199007,220.6261,13.347,13.332,115.9051]
[1672847199424,56.25,13.344,13.332,115.9051]
[1672847200062,164.3861,13.347,13.328,21.7811836]
[1672847200277,164.3861,13.347,13.33,224.7]
[1672847200487,164.3861,13.347,13.332,224.7]
[1672847201220,164.3861,13.347,13.334,224.7]
[1672847202061,164.3861,13.347,13.333,224.7]
[1672847202267,164.3861,13.347,13.335,224.7]
[1672847202695,164.3861,13.347,13.337,224.7]
[1672847203012,56.21,13.354,13.345,17.14105167]
[1672847203325,191.2735,13.355,13.345,17.14105167]
[1672847205624,128.8115244,13.359,13.346,224.7]
[1672847205625,72.6215244,13.359,13.346,224.7]
[1672847205839,72.6215244,13.359,13.346,246.4811836]
[1672847206060,189.7732,13.358,13.346,224.7]
[1672847206248,72.6215244,13.359,13.347,297.94]
[1672847206460,72.6215244,13.359,13.347,319.7211836]
[1672847206672,72.6215244,13.359,13.347,302.7211836]
[1672847206884,72.6215244,13.359,13.347,319.7211836]
[1672847207721,72.6215244,13.359,13.348,21.7811836]
[1672847207926,72.6215244,13.359,13.35,224.7]
[1672847208136,72.6215244,13.359,13.352,224.7]
[1672847208365,72.6215244,13.359,13.345,17.14105167]
[1672847208801,56.19,13.358,13.345,241.84105167]
[1672847209102,67.125374,13.358,13.345,241.84105167]
[1672847209840,67.125374,13.358,13.345,17.14105167]
[1672847210455,30.935374,13.357,13.345,17.14105167]
[1672847210666,56.2,13.356,13.345,17.14105167]
[1672847210885,67.135374,13.356,13.345,17.14105167]
[1672847211099,10.935374,13.355,13.345,17.14105167]
[1672847217188,76.21,13.354,13.345,17.14105167]
[1672847217725,104.1378,13.358,13.345,17.14105167]
[1672847218561,115.073174,13.358,13.345,17.14105167]
[1672847220445,58.883174,13.358,13.345,17.14105167]
[1672847221506,56.2,13.357,13.345,17.14105167]
[1672847222038,10.935374,13.356,13.345,17.14105167]
[1672847223295,76.21,13.355,13.345,17.14105167]
[1672847223719,10.935374,13.354,13.345,17.14105167]
[1672847223931,47.9478,13.358,13.345,17.14105167]
[1672847225086,58.883174,13.358,13.345,17.14105167]
[1672847225397,47.9478,13.358,13.345,17.14105167]
[1672847226255,47.6478,13.358,13.345,17.14105167]
[1672847226435,47.6478,13.358,13.346,224.7]
[1672847227388,56.2,13.357,13.345,17.14105167]
[1672847227587,56.2,13.357,13.347,224.7]
[1672847228452,10.935374,13.356,13.347,224.7]
[1672847228641,10.935374,13.356,13.345,17.14105167]
[1672847228642,20.0,13.355,13.345,17.14105167]
[1672847228858,56.21,13.354,13.345,17.14105167]
[1672847229179,20.0,13.353,13.345,17.14105167]
[1672847229392,30.935374,13.353,13.345,17.14105167]
[1672847229610,10.935374,13.352,13.345,17.14105167]
[1672847229827,20.0,13.351,13.345,17.14105167]
[1672847230223,10.935374,13.35,13.345,17.14105167]
[1672847230768,10.935374,13.35,13.345,6.12485167]
[1672847231067,10.935374,13.35,13.342,263.7]
[1672847231286,67.165374,13.35,13.342,263.7]
[1672847231706,10.9499336,13.349,13.342,263.7]
[1672847235183,10.9499336,13.349,13.342,263.7]
[1672847236331,56.24,13.348,13.342,263.7]
[1672847236543,20.0,13.347,13.331,224.7]
[1672847236868,67.80778176,13.346,13.33,224.7]
[1672847237075,20.0,13.345,13.33,224.7]
[1672847237285,56.25,13.344,13.325,129.02279248]
[1672847237481,20.0,13.343,13.326,281.03]
[1672847237693,31.55778176,13.343,13.328,224.7]
[1672847237902,23.4049,13.342,13.328,224.7]
[1672847238113,20.0,13.341,13.328,224.7]
[1672847238442,23.5423,13.34,13.329,352.66512018]
[1672847238653,35.10008176,13.34,13.329,352.66512018]
[1672847238864,23.5423,13.34,13.329,352.66512018]
[1672847239267,114.0078,13.341,13.331,224.7]
[1672847239478,114.0078,13.341,13.333,224.7]
[1672847239791,114.0078,13.341,13.335,224.7]
[1672847240018,56.21,13.355,13.337,224.7]
[1672847240227,11.55778176,13.347,13.339,224.7]
[1672847240442,114.0078,13.349,13.339,224.7]
[1672847241172,114.0078,13.349,13.34,56.27]
[1672847241365,11.55778176,13.348,13.338,224.7]
[1672847241573,11.55778176,13.348,13.339,56.28]
[1672847241796,11.55778176,13.348,13.333,56.3]
[1672847242428,11.55778176,13.348,13.334,224.7]
[1672847242856,11.55778176,13.348,13.336,224.7]
[1672847243263,11.55778176,13.348,13.333,56.3]
[1672847243680,20.0,13.347,13.333,56.3]
[1672847243889,56.25,13.346,13.324,56.34]
[1672847244106,20.0,13.345,13.325,129.02279248]
[1672847244314,31.55778176,13.345,13.327,224.7]
[1672847244526,67.80778176,13.344,13.329,352.66512018]
[1672847244736,20.0,13.343,13.329,352.66512018]
[1672847244946,22.8887,13.342,13.329,352.66512018]
[1672847245156,20.0,13.341,13.329,352.66512018]
[1672847245472,54.49968176,13.341,13.329,352.66512018]
[1672847245683,11.55778176,13.34,13.329,352.66512018]
[1672847247063,11.55778176,13.34,13.326,224.7]
[1672847247279,22.9715,13.339,13.328,224.7]
[1672847247802,11.55778176,13.338,13.328,224.7]
[1672847248204,11.55778176,13.338,13.326,224.7]
[1672847248407,11.55778176,13.338,13.328,224.7]
[1672847248638,11.55778176,13.338,13.33,224.7]
[1672847249797,11.55778176,13.338,13.328,224.7]
[1672847249990,11.55778176,13.338,13.33,224.7]
[1672847250416,22.9715,13.339,13.33,224.7]
[1672847250736,20.0,13.338,13.33,224.7]
[1672847250930,32.16522947,13.338,13.328,224.7]
[1672847251140,32.16522947,13.338,13.33,224.7]
[1672847251351,12.16522947,13.337,13.33,224.7]
[1672847252203,12.16522947,13.337,13.328,224.7]
[1672847252419,12.16522947,13.337,13.33,224.7]
[1672847252949,23.4057,13.342,13.33,224.7]
[1672847252950,107.62509542,13.364,13.33,224.7]
[1672847253152,208.5379,13.354,13.334,224.7]
[1672847253368,56.22,13.353,13.336,224.7]
[1672847253558,20.0,13.352,13.336,224.7]
[1672847253766,80.2915,13.351,13.336,224.7]
[1672847253980,20.0,13.35,13.336,224.7]
[1672847254207,23.4389,13.349,13.336,224.7]
[1672847254421,20.0,13.348,13.335,224.7]
[1672847254736,56.23672947,13.348,13.335,224.7]
[1672847254941,12.16522947,13.347,13.335,224.7]
[1672847255876,12.16522947,13.347,13.334,56.3]
[1672847256091,12.16522947,13.347,13.333,263.7]
[1672847256508,68.40522947,13.347,13.333,263.7]
[1672847256848,12.16522947,13.346,13.331,158.3652]
[1672847257033,76.25,13.345,13.326,224.7]
[1672847257365,12.16522947,13.346,13.328,224.7]
[1672847257668,24.0715,13.348,13.33,224.7]
[1672847257866,24.0715,13.348,13.332,224.7]
[1672847258072,12.16522947,13.347,13.332,224.7]
[1672847258816,12.16522947,13.347,13.333,56.3]
[1672847259023,12.16522947,13.347,13.33,56.31]
[1672847259774,12.16522947,13.347,13.33,80.4745]
[1672847259984,12.16522947,13.347,13.331,224.7]
[1672847260303,12.16522947,13.347,13.333,224.7]
[1672847260495,12.16522947,13.347,13.334,281.0]
[1672847260715,12.16522947,13.347,13.334,224.7]
[1672847261461,12.16522947,13.347,13.333,224.7]
[1672847261671,12.16522947,13.347,13.333,281.0]
[1672847262098,24.0715,13.348,13.333,281.0]
[1672847263356,36.23672947,13.348,13.333,281.0]
[1672847267032,36.23672947,13.348,13.333,56.3]
[1672847268911,76.24,13.347,13.327,56.33]
[1672847269117,213.2788,13.347,13.327,115.5143]
[1672847269444,12.16522947,13.346,13.327,115.5143]
[1672847269662,76.25,13.345,13.327,115.5143]
[1672847269853,46.4013,13.344,13.327,115.5143]
[1672847270066,76.26,13.343,13.327,115.5143]
[1672847270283,89.03263714,13.343,13.327,115.5143]
[1672847270475,12.77263714,13.342,13.327,115.5143]
[1672847270689,20.0,13.341,13.327,115.5143]
[1672847270916,157.9661,13.341,13.327,115.5143]
[1672847271131,12.77263714,13.34,13.327,115.5143]
[1672847271334,20.0,13.339,13.327,115.5143]
[1672847271743,12.77263714,13.338,13.327,115.5143]
[1672847277654,20.0,13.337,13.322,56.35]
[1672847277872,56.29,13.336,13.321,0.91279055]
[1672847278187,20.0,13.335,13.321,0.91279055]
[1672847278400,164.9979,13.334,13.321,0.91279055]
[1672847278592,20.0,13.333,13.321,0.91279055]
[1672847278797,89.68033644,13.333,13.321,0.91279055]
[1672847279009,13.38033644,13.332,13.321,0.91279055]
[1672847279219,20.0,13.331,13.321,0.91279055]
[1672847279658,13.38033644,13.33,13.321,0.91279055]
[1672847279860,20.0,13.329,13.321,0.91279055]
[1672847280271,13.38033644,13.328,13.321,0.91279055]
[1672847283016,13.38033644,13.328,13.315,164.4065]
[1672847283230,13.38033644,13.328,13.315,118.3242]
[1672847283657,13.38033644,13.328,13.306,56.41]
[1672847283658,76.33,13.327,13.306,56.41]
[1672847283965,185.9031,13.327,13.306,212.8402]
[1672847284160,199.28343644,13.327,13.307,224.7]
[1672847284387,47.6916,13.326,13.309,224.7]
[1672847284580,20.0,13.325,13.309,224.7]
[1672847284792,89.71033644,13.325,13.309,224.7]
[1672847285416,89.71033644,13.325,13.308,224.7]
[1672847285846,13.38033644,13.324,13.308,224.7]
[1672847286064,20.0,13.323,13.308,224.7]
[1672847286273,44.6656,13.323,13.308,224.7]
[1672847286678,44.6656,13.323,13.31,224.7]
[1672847287746,44.6656,13.323,13.308,224.7]
[1672847287947,44.6656,13.323,13.31,224.7]
[1672847288157,44.6656,13.323,13.312,224.7]
[1672847289005,24.6656,13.323,13.312,224.7]
[1672847289223,122.95343644,13.327,13.313,56.38]
[1672847289517,122.95343644,13.327,13.309,56.4]
[1672847289732,122.95343644,13.327,13.308,224.7]
[1672847289945,122.95343644,13.327,13.309,304.9142]
[1672847291002,109.5731,13.327,13.309,304.9142]
[1672847291432,109.5731,13.327,13.311,224.7]
[1672847291624,109.5731,13.327,13.313,224.7]
[1672847291828,109.5731,13.327,13.315,224.7]
[1672847292038,109.5731,13.327,13.311,46.5143836]
[1672847292039,109.5731,13.327,13.317,224.7]
[1672847292244,109.5731,13.327,13.319,224.7]
[1672847293216,109.5731,13.327,13.321,224.7]
[1672847293407,47.4814,13.331,13.323,224.7]
[1672847293616,20.0,13.33,13.323,224.7]
[1672847294366,119.6404,13.338,13.318,21.7811836]
[1672847294575,119.6404,13.338,13.32,224.7]
[1672847294787,133.02073644,13.338,13.322,224.7]
[1672847294980,133.02073644,13.338,13.324,224.7]
[1672847296049,133.02073644,13.338,13.323,224.7]
[1672847296255,133.02073644,13.338,13.325,224.7]
[1672847297528,133.02073644,13.338,13.323,224.7]
[1672847297850,133.02073644,13.338,13.324,281.04]
[1672847298163,133.02073644,13.338,13.324,224.7]
[1672847298662,133.02073644,13.338,13.305,23.2923]
[1672847298874,133.02073644,13.338,13.302,656.93186379]
[1672847298875,20.0,13.337,13.304,116.7713]
[1672847299100,56.29,13.336,13.304,116.7713]
[1672847299312,44.6906,13.335,13.304,116.7713]
[1672847299499,56.3,13.334,13.304,116.7713]
[1672847299711,68.1018,13.333,13.305,224.7]
[1672847299920,56.3,13.332,13.305,224.7]
[1672847300146,20.0,13.331,13.305,224.7]
[1672847300352,56.31,13.33,13.305,224.7]
[1672847300557,129.7039,13.329,13.305,224.7]
[1672847300772,56.32,13.328,13.305,224.7]
[1672847300991,92.7924,13.327,13.305,224.7]
[1672847301187,56.33,13.326,13.305,224.7]
[1672847301403,20.0,13.325,13.305,224.7]
[1672847301607,56.34,13.324,13.305,224.2]
[1672847301821,20.0,13.323,13.305,224.2]
[1672847302035,56.35,13.322,13.305,224.2]
[1672847302245,20.0,13.321,13.305,224.2]
[1672847302455,33.38033644,13.321,13.305,224.2]
[1672847302999,13.38033644,13.32,13.305,224.2]
[1672847303308,20.0,13.319,13.305,224.2]
[1672847303520,20.0,13.319,13.304,116.7713]
[1672847303718,69.74033644,13.318,13.3,71.3398]
[1672847303924,69.74033644,13.318,13.296,109.0663]
[1672847304257,13.38033644,13.317,13.296,109.0663]
[1672847304461,56.37,13.316,13.296,109.0663]
[1672847304678,20.0,13.315,13.297,224.7]
[1672847304991,13.38033644,13.315,13.297,224.7]
[1672847305205,13.38033644,13.314,13.297,224.7]
[1672847305411,20.0,13.313,13.297,224.7]
[1672847305935,13.38033644,13.312,13.297,224.7]
[1672847306148,20.0,13.311,13.297,224.7]
[1672847306459,20.0,13.311,13.29,224.7]
[1672847306674,56.33,13.326,13.29,224.7]
[1672847306675,13.38033644,13.31,13.29,224.7]
[1672847306986,20.0,13.309,13.29,224.7]
[1672847307388,13.38033644,13.308,13.289,187.0134]
[1672847307597,13.38033644,13.308,13.289,342.3437]
[1672847308253,20.0,13.307,13.289,342.3437]
[1672847308664,13.38033644,13.306,13.289,342.3437]
[1672847309496,13.38033644,13.306,13.29,52.45]
[1672847310547,13.38033644,13.306,13.291,224.7]
[1672847310771,13.38033644,13.306,13.292,52.44]
[1672847311304,13.38033644,13.306,13.293,52.44]
[1672847311612,13.38033644,13.306,13.29,52.45]
[1672847314345,76.42,13.305,13.285,52.47]
[1672847314555,264.7883,13.305,13.285,52.47]
[1672847314868,13.38033644,13.304,13.285,52.47]
[1672847315086,20.0,13.303,13.285,52.47]
[1672847315486,13.38033644,13.302,13.285,52.47]
[1672847315695,20.0,13.301,13.285,52.47]
[1672847316233,33.38033644,13.301,13.285,52.47]
[1672847317062,20.0,13.301,13.285,52.47]
[1672847317283,33.38033644,13.301,13.285,52.47]
[1672847318117,33.38033644,13.301,13.28,52.49]
[1672847318118,56.44,13.3,13.28,52.49]
[1672847318331,56.44,13.3,13.274,38.84867621]
[1672847318332,103.7652,13.3,13.275,52.51]
[1672847318543,56.36073644,13.299,13.28,38.84867621]
[1672847318762,56.45,13.298,13.275,91.35867621]
[1672847318972,20.0,13.297,13.277,60.62985981]
[1672847319184,33.38033644,13.297,13.277,21.7811836]
[1672847319506,13.38033644,13.296,13.275,91.35867621]
[1672847319702,20.0,13.295,13.275,316.05867621]
[1672847319902,20.0,13.297,13.278,224.7]
[1672847321166,13.98778415,13.296,13.278,224.7]
[1672847322013,13.98778415,13.296,13.278,263.54867621]
[1672847324234,20.0,13.297,13.278,285.32985981]
[1672847324427,33.98778415,13.297,13.278,263.54867621]
[1672847324960,20.0,13.297,13.278,285.32985981]
[1672847325173,20.0,13.297,13.278,246.4811836]
[1672847325721,13.98778415,13.296,13.278,224.7]
[1672847326031,20.0,13.297,13.28,224.7]
[1672847326967,20.0,13.297,13.278,224.7]
[1672847327691,20.0,13.297,13.28,224.7]
[1672847327904,56.35,13.321,13.298,122.06705565]
[1672847328114,13.98778415,13.302,13.298,122.06705565]
[1672847328653,56.36,13.32,13.298,122.06705565]
[1672847328972,13.98778415,13.319,13.298,122.06705565]
[1672847329287,56.36,13.318,13.298,122.06705565]
[1672847329811,13.98778415,13.317,13.298,122.06705565]
[1672847330014,56.37,13.316,13.298,122.06705565]
[1672847330229,23.1525,13.315,13.298,122.06705565]
[1672847330422,56.38,13.314,13.298,122.06705565]
[1672847330754,189.86148415,13.314,13.298,122.06705565]
[1672847330950,13.98778415,13.313,13.298,122.06705565]
[1672847331163,20.0,13.312,13.298,122.06705565]
[1672847331582,13.98778415,13.311,13.298,122.06705565]
[1672847332021,20.0,13.31,13.298,122.06705565]
[1672847332426,13.98778415,13.309,13.298,122.06705565]
[1672847332745,20.0,13.308,13.298,122.06705565]
[1672847333152,33.98778415,13.308,13.298,122.06705565]
[1672847334312,20.0,13.308,13.298,346.76705565]
[1672847334523,20.0,13.312,13.298,346.76705565]
[1672847334843,33.98778415,13.312,13.298,346.76705565]
[1672847335675,20.0,13.312,13.298,346.76705565]
[1672847335882,33.98778415,13.312,13.298,346.76705565]
[1672847338032,20.0,13.312,13.298,346.76705565]
[1672847338226,33.98778415,13.312,13.298,346.76705565]
[1672847338873,56.36,13.32,13.298,346.76705565]
[1672847339085,13.98778415,13.317,13.298,346.76705565]
[1672847339291,13.98778415,13.317,13.3,224.7]
[1672847339503,20.0,13.316,13.3,224.7]
[1672847339920,13.98778415,13.315,13.3,224.7]
[1672847344218,20.0,13.314,13.298,122.06705565]
[1672847344427,56.38,13.313,13.298,122.06705565]
[1672847344652,20.0,13.312,13.298,122.06705565]
[1672847344863,33.98778415,13.312,13.298,122.06705565]
[1672847345061,13.98778415,13.311,13.298,122.06705565]
[1672847345475,20.0,13.31,13.298,122.06705565]
[1672847345898,13.98778415,13.309,13.298,122.06705565]
[1672847346110,20.0,13.308,13.298,122.06705565]
[1672847346543,13.98778415,13.307,13.298,122.06705565]
[1672847346754,20.0,13.306,13.298,122.06705565]
[1672847347283,13.98778415,13.305,13.298,346.76705565]
[1672847347495,20.0,13.306,13.298,346.76705565]
[1672847347706,13.98778415,13.307,13.298,346.76705565]
[1672847347922,20.0,13.306,13.298,346.76705565]
[1672847349057,20.0,13.306,13.298,122.06705565]
[1672847351817,13.98778415,13.305,13.298,122.06705565]
[1672847353797,20.0,13.306,13.298,346.76705565]
[1672847354018,20.0,13.31,13.298,346.76705565]
[1672847354424,20.0,13.31,13.298,122.06705565]
[1672847354634,33.98778415,13.31,13.298,122.06705565]
[1672847357055,13.98778415,13.31,13.298,122.06705565]
[1672847357270,221.6557,13.32,13.298,346.76705565]
[1672847357482,13.98778415,13.319,13.299,272.3672]
[1672847357678,56.36,13.318,13.299,272.3672]
[1672847358096,13.98778415,13.317,13.301,224.7]
[1672847358507,20.0,13.316,13.301,224.7]
[1672847358934,33.98778415,13.316,13.301,224.7]
[1672847359472,33.98778415,13.316,13.3,340.0383]
[1672847360202,20.0,13.316,13.3,340.0383]
[1672847360412,20.0,13.318,13.3,340.0383]
[1672847362006,22.9541,13.317,13.3,340.0383]
[1672847362205,20.0,13.316,13.3,340.0383]
[1672847365054,20.0,13.316,13.302,224.7]
[1672847365455,24.5481,13.32,13.303,58.7811836]
[1672847365679,23.9027,13.339,13.304,224.7]
[1672847365899,23.9027,13.339,13.305,37.0]
[1672847365900,56.28,13.338,13.305,37.0]
[1672847366113,56.28,13.338,13.306,224.7]
[1672847366421,13.98778415,13.337,13.307,37.0]
[1672847366625,56.29,13.336,13.308,224.7]
[1672847367031,33.98778415,13.335,13.308,224.7]
[1672847367259,56.3,13.334,13.309,21.7811836]
[1672847367456,20.0,13.333,13.308,224.7]
[1672847367663,56.3,13.332,13.308,224.7]
[1672847367879,24.4005,13.331,13.308,224.7]
[1672847368090,24.4005,13.331,13.308,246.4811836]
[1672847369053,20.0,13.33,13.308,246.4811836]
[1672847370960,20.0,13.33,13.308,224.7]
[1672847370961,33.98778415,13.33,13.308,224.7]
[1672847374739,33.98778415,13.33,13.307,208.2764]
[1672847374932,56.32,13.329,13.307,208.2764]
[1672847375144,20.0,13.328,13.307,188.2764]
[1672847375354,212.9847,13.327,13.307,188.2764]
[1672847375561,20.0,13.326,13.307,188.2764]
[1672847375773,33.98778415,13.326,13.307,188.2764]
[1672847375981,70.31778415,13.325,13.301,24.6676]
[1672847376192,20.0,13.324,13.303,224.7]
[1672847376416,33.98778415,13.324,13.303,224.7]
[1672847376635,13.98778415,13.323,13.303,224.7]
[1672847376842,20.0,13.322,13.303,224.7]
[1672847377045,134.0571,13.321,13.303,224.7]
[1672847377577,20.0,13.32,13.303,224.7]
[1672847377779,44.735,13.32,13.303,224.7]
[1672847383268,13.98778415,13.319,13.303,224.7]
[1672847383477,20.0,13.318,13.303,224.7]
[1672847383668,23.5413,13.317,13.303,224.7]